fUSD/lending_fUSD_20241121
["ID","MTS","AMOUNT","RATE_DAILY","PERIOD"]
[342852074,1732182429125,-1132.48756464,0.00015142,2]
[342852075,1732182429147,-1205.040615,0.00015165,2]
[342852076,1732182429168,-827.23920319,0.00015192,2]
[342852077,1732182431094,-164.7075588,0.00015192,2]
[342852078,1732182443854,-140.54080264,0.00015192,2]
[342852079,1732182443874,-337.30736934,0.00015242,2]
[342852080,1732182546107,-863.98619533,0.00015142,2]
[342852081,1732182546128,-1411.29521747,0.00015242,2]
[342852082,1732182546150,-1132.48756463,0.00015242,2]
[342852083,1732182546172,-300.0,0.00015341,2]
[342852084,1732182546194,-1000.0,0.00015341,2]
[342852085,1732182546550,-95078.57948771,0.00015342,10]
[342852087,1732182560416,-2657.44022813,0.00015342,10]
[342852089,1732182567205,-674.003076,0.00015242,2]
[342852090,1732182567227,-11567.209264,0.00015342,10]
[342852091,1732182574080,-15202.7991418,0.00015342,10]
[342852099,1732182632103,-300.0,0.00015341,2]
[342852101,1732182632113,-150.0,0.00015342,2]
[342852103,1732182632122,-150.0,0.00015342,2]
[342852105,1732182632131,-150.0,0.00015342,2]
[342852107,1732182632141,-150.0,0.00015342,2]
[342852109,1732182632151,-150.0,0.00015342,2]
[342852111,1732182632160,-150.0,0.00015342,2]
[342852113,1732182632170,-150.0,0.00015342,2]
[342852114,1732182632179,-150.0,0.00015342,2]
[342852115,1732182632188,-150.0,0.00015342,2]
[342852116,1732182632197,-150.0,0.00015342,2]
[342852117,1732182632207,-150.0,0.00015342,2]
[342852118,1732182632217,-150.0,0.00015342,2]
[342852119,1732182632226,-150.0,0.00015342,2]
[342852120,1732182632236,-150.0,0.00015342,2]
[342852121,1732182632245,-150.0,0.00015342,2]
[342852122,1732182632255,-150.0,0.00015342,2]
[342852123,1732182632264,-150.0,0.00015342,2]
[342852124,1732182632273,-150.0,0.00015342,2]
[342852125,1732182632283,-192.82967913,0.00015342,2]
[342852126,1732182632292,-386.86592198,0.00015342,10]
[342852127,1732182632307,-1466.44234255,0.00015342,10]
[342852128,1732182632318,-2167.0,0.00015342,10]
[342852129,1732182632359,-449.99,0.00015342,10]
[342852130,1732182632370,-972.49542004,0.00015342,10]
[342852131,1732182632386,-1272.14614415,0.00015342,10]
[342852132,1732182632397,-28007.19018344,0.00015342,10]
[342852133,1732182632407,-155.28,0.00015342,2]
[342852134,1732182632416,-510.0,0.00016461,2]
[342852135,1732182632426,-388.0,0.00016785,2]
[342852136,1732182632436,-150.0,0.00016862,2]
[342852137,1732182632445,-866.0,0.00017658,2]
[342852138,1732182632454,-919.0,0.00018947,2]
[342852139,1732182632464,-150.0,0.00024904,2]
[342852140,1732182632473,-500.0,0.00024932,2]
[342852141,1732182632482,-500.0,0.00024932,2]
[342852142,1732182632491,-500.0,0.00024932,2]
[342852143,1732182632500,-500.0,0.00024932,2]
[342852144,1732182632509,-500.0,0.00024932,2]
[342852145,1732182632519,-163.44,0.00027178,2]
[342852146,1732182632528,-1633.0,0.00027397,7]
[342852147,1732182632537,-155.7,0.00028108,2]
[342852148,1732182632546,-150.99,0.00028108,2]
[342852149,1732182632555,-151.0,0.0003,120]
[342852150,1732182632564,-200.0,0.0003,120]
[342852151,1732182632573,-151.0,0.0003,120]
[342852152,1732182632582,-3381.65785685,0.0003,2]
[342852153,1732182632594,-4411.96214315,0.0003,2]
[342852154,1732182632603,-2940.0,0.0003,10]
[342852155,1732182632613,-500.0,0.0003,30]
[342852156,1732182632622,-323.74865564,0.0003,30]
[342852157,1732182632645,-214.88074987,0.0003,30]
[342852158,1732182632656,-500.0,0.000305,30]
[342852159,1732182632666,-264.24423539,0.000305,30]
[342852167,1732182638144,-235.75576461,0.000305,30]
[342852168,1732182638154,-500.0,0.000305,30]
[342852169,1732182638163,-177.295,0.00031561,29]
[342852170,1732182638175,-460.57923539,0.00031561,29]
[342852171,1732182638191,-1847.26176461,0.00031561,29]
[342852172,1732182638200,-200.0,0.00032,120]
[342852173,1732182638209,-154.0,0.00032,20]
[342852174,1732182638219,-250.0,0.00033379,2]
[342852175,1732182638228,-4303.19465466,0.00033388,2]
[342852193,1732182638801,-13498.12273618,0.00033388,2]
[342852196,1732182638837,-2735.96370243,0.00033388,2]
[342852198,1732182638852,-3362.71890673,0.00033388,2]
[342852199,1732182638862,-396.46,0.00033388,120]
[342852200,1732182638871,-1000.0,0.00033588,2]
[342852202,1732182638881,-1293.61,0.00033821,2]
[342852203,1732182638890,-163.44,0.00033973,2]
[342852204,1732182638899,-1825.34,0.00033989,2]
[342852206,1732182638908,-200.0,0.00034,120]
[342852207,1732182638917,-200.0,0.00034016,2]
[342852208,1732182638928,-62.58134672,0.00034194,2]
[342852209,1732182638958,-1396.49865328,0.00034194,2]
[342852210,1732182638967,-600.0,0.000345,120]
[342852211,1732182638976,-150.0,0.00034548,10]
[342852212,1732182638985,-250.0,0.00034652,2]
[342852213,1732182638994,-250.0,0.00034731,120]
[342852214,1732182639004,-907.76,0.00034846,10]
[342852215,1732182639013,-347.26090567,0.00034855,2]
[342852216,1732182639022,-24215.22287889,0.00034856,2]
[342852217,1732182639031,-150.24,0.00034865,2]
[342852218,1732182639041,-372.22911655,0.00034865,2]
[342852219,1732182639051,-196.0,0.00034865,30]
[342852220,1732182639060,-196.0,0.00034865,30]
[342852221,1732182639069,-196.0,0.00034865,30]
[342852222,1732182639078,-2069.43164724,0.00034865,120]
[342852223,1732182639087,-514.84687809,0.00034865,120]
[342852224,1732182639096,-200.0,0.00034896,2]
[342852225,1732182639105,-250.0,0.00034932,2]
[342852226,1732182639115,-1429.81,0.00034968,2]
[342852227,1732182639124,-154.0,0.00035,20]
[342852228,1732182639133,-73.2490428,0.00035077,2]
[342852229,1732182639146,-76.7509572,0.00035077,2]
[342852230,1732182639156,-191.89,0.00035124,5]
[342852231,1732182639165,-158.86,0.00035206,120]
[342852232,1732182639175,-500.0,0.00035293,2]
[342852233,1732182639184,-168.37,0.0003551,2]
[342852234,1732182639194,-179.66,0.00035756,2]
[342852235,1732182639203,-164.53,0.00035856,2]
[342852236,1732182639213,-2268.95653876,0.00035883,2]
[342852238,1732182640235,-2308.34346124,0.00035883,2]
[342852239,1732182640245,-267.2,0.00035969,120]
[342852240,1732182640254,-200.0,0.00036,120]
[342852241,1732182640263,-1293.61,0.00036085,2]
[342852242,1732182640272,-382.87,0.00036592,120]
[342852243,1732182640281,-300.88,0.00036614,120]
[342852244,1732182640290,-162.35,0.00036799,2]
[342852245,1732182640300,-469.36,0.00036824,2]
[342852246,1732182640309,-236.17,0.00037476,2]
[342852247,1732182640318,-396.46,0.00037562,120]
[342852248,1732182640327,-412.33,0.0003764,2]
[342852249,1732182640336,-137.51701621,0.00037786,2]
[342852250,1732182640348,-862.48298379,0.00037786,2]
[342852251,1732182640357,-200.0,0.00038,120]
[342852252,1732182640366,-154.0,0.00038,20]
[342852253,1732182640376,-157.5,0.00038,20]
[342852254,1732182640385,-2069.43164724,0.00038,120]
[342852255,1732182640394,-514.84687809,0.00038,120]
[342852256,1732182640403,-1293.61,0.00038349,2]
[342852257,1732182640413,-161.592643,0.000384,10]
[342852258,1732182640422,-164.53,0.00038417,2]
[342852259,1732182640431,-200.0,0.00038513,2]
[342852260,1732182640441,-4437.0,0.000392,3]
[342852261,1732182640451,-158.86,0.00039297,120]
[342852262,1732182640460,-6057.0,0.00039501,2]
[342852263,1732182640470,-1196.535,0.000397,2]
[342852264,1732182640480,-818.3646,0.000397,2]
[342852265,1732182640490,-675.53990322,0.000397,12]
[342852266,1732182640499,-1400.0,0.000397,14]
[342852267,1732182640508,-4176.53886427,0.00039789,31]
[342852268,1732182640517,-49549.14397415,0.000398,2]
[342852270,1732182641356,-5842.87704,0.000398,2]
[342852271,1732182641368,-1952.79992062,0.000398,2]
[342852272,1732182641407,-606.82000019,0.000398,2]
[342852273,1732182641419,-1466.91,0.000398,2]
[342852274,1732182641437,-128.66266504,0.000398,2]
[342852275,1732182641446,-673.226,0.000398,2]
[342852276,1732182641455,-215.0916,0.000398,2]
[342852277,1732182641465,-63056.6063,0.000398,2]
[342852278,1732182641475,-1000.0,0.000398,2]
[342852279,1732182641484,-2500.0,0.000398,2]
[342852280,1732182641493,-2900.0,0.000398,14]
[342852281,1732182641503,-162.35,0.00039836,2]
[342852282,1732182641512,-500.0,0.00039873,2]
[342852283,1732182641521,-191.5,0.0003989,30]
[342852284,1732182641531,-500.0,0.00039899,120]
[342852285,1732182641540,-26646.69144166,0.000399,21]
[342852286,1732182641559,-24324.0,0.000399,21]
[342852302,1732182643128,-756.47,0.00034846,10]
[342852304,1732182643138,-1127.02999999,0.000399,21]
[342852306,1732182643149,-19785.12272842,0.000399,21]
[342852308,1732182643160,-1359.0,0.000399,21]
[342852314,1732182643447,-9576.48081799,0.000399,21]
[342852315,1732182643485,-2206.08383801,0.000399,21]
[342852316,1732182643497,-19804.17178986,0.000399,21]
[342852317,1732182643508,-4618.70540183,0.000399,21]
[342852318,1732182643519,-5975.30610528,0.000399,21]
[342852319,1732182643531,-5997.23591798,0.000399,21]
[342852320,1732182643546,-4876.9845,0.000399,21]
[342852321,1732182643652,-629.635992,0.000399,21]
[342852322,1732182643664,-121332.81399626,0.000399,21]
[342852323,1732182643680,-5484.408825,0.000399,21]
[342852327,1732182646110,-323.47547687,0.000399,21]
[342852328,1732182646144,-4845.4000006,0.000399,21]
[342852329,1732182646177,-177599.99998801,0.000399,21]
[342852330,1732182646189,-6231.00000032,0.000399,21]
[342852331,1732182646208,-5885.06454944,0.000399,21]
[342852332,1732182646322,-1553.18539763,0.000399,21]
[342852333,1732182646451,-2960.55253716,0.000399,21]
[342852334,1732182646463,-9725.3,0.000399,21]
[342852335,1732182646586,-154.2981393,0.000399,21]
[342852340,1732182783925,250.78446201,0.000235,90]
[342852343,1732183559125,-158.95,0.00015342,2]
[342852344,1732183559145,-156.85,0.00015342,2]
[342852345,1732183559168,-156.85,0.00023452,2]
[342852346,1732183559188,-131.25044856,0.00024932,2]
[342852347,1732183629134,-150.0,0.00016862,2]
[342852348,1732183629156,-368.74955144,0.00024932,2]
[342852349,1732183629178,-384.34460932,0.00026986,120]
[342852350,1732183630211,-415.65539068,0.00026986,120]
[342852351,1732183630242,-1536.25779627,0.00027407,2]
[342852352,1732183630273,-158.95,0.00027507,2]
[342852353,1732183630299,-1385.82297107,0.00027653,2]
[342852354,1732183638746,-150.43482519,0.00027653,2]
[342852355,1732183638767,-107.76798403,0.00027753,2]
[342852356,1732183639102,-1337.0250832,0.00027753,2]
[342852357,1732183652086,-327.10683935,0.00027753,2]
[342852375,1732183745099,-288.59009342,0.00027753,2]
[342852376,1732183745120,-163.95,0.00029055,2]
[342852377,1732183745144,-151.0,0.0003,120]
[342852378,1732183745164,-151.0,0.0003,120]
[342852379,1732183745185,-564.8224052,0.0003,2]
[342852380,1732183745205,-150.99,0.0003,2]
[342852381,1732183745225,-150.0,0.00030403,2]
[342852382,1732183745246,-250.0,0.00031,2]
[342852383,1732183745266,-16204.66,0.00031,2]
[342852384,1732183745292,-156.85,0.00031562,2]
[342852385,1732183745313,-5372.0,0.000316,3]
[342852390,1732183749735,9224.64247257,0.000322,5]
[342852391,1732183762221,-163.887,0.00026181,2]
[342852392,1732183762243,-2333.35752743,0.000322,5]
[342852393,1732183762264,-300.0,0.00033,2]
[342852394,1732183762285,-299.99,0.000331,30]
[342852395,1732183762308,-1292.77,0.0003405,2]
[342852396,1732183769016,-1846.272,0.00034855,40]
[342852397,1732183769038,-5731.32900478,0.00034856,2]
[342852406,1732183832336,-16927.9141617,0.00034856,2]
[342852407,1732183832346,-1810.31905925,0.00034857,120]
[342852408,1732183832356,-449.60976785,0.00034857,120]
[342852409,1732183832366,-196.0,0.00034857,30]
[342852410,1732183832376,-332.0,0.00034857,30]
[342852411,1732183832387,-564.8224052,0.00035,2]
[342852412,1732183832397,-350.0,0.00035,2]
[342852413,1732183832407,-250.0,0.00035489,2]
[342852414,1732183832419,-1500.0,0.00035728,120]
[342852415,1732183832428,-150.0,0.0003575,2]
[342852416,1732183832437,-168.37,0.00035865,2]
[342852417,1732183832447,-164.67,0.00035909,2]
[342852418,1732183832458,-150.24,0.00035962,2]
[342852419,1732183832468,-250.0,0.00035995,2]
[342852420,1732183832477,-250.0,0.00036058,120]
[342852421,1732183832486,-23900.0,0.00036078,2]
[342852422,1732183832495,-159.66,0.00036084,120]
[342852423,1732183832506,-500.0,0.00036086,2]
[342852424,1732183832516,-521.42,0.00036091,120]
[342852425,1732183832524,-192.69736635,0.00036101,2]
[342852426,1732183832536,-807.30263365,0.00036101,2]
[342852427,1732183832546,-300.0,0.00036121,2]
[342852428,1732183832555,-152.64,0.0003614,2]
[342852429,1732183832564,-5.82691764,0.00036165,2]
[342852430,1732183832575,-194.17308236,0.00036165,2]
[342852431,1732183832584,-407.2862905,0.00036314,2]
[342852432,1732183832628,-885.4837095,0.00036314,2]
[342852433,1732183832638,-319.05,0.00036355,120]
[342852434,1732183832648,-2060.49,0.0003636,2]
[342852435,1732183832659,-166.66,0.00036528,2]
[342852436,1732183832668,-200.0,0.00036538,2]
[342852437,1732183832678,-250.0,0.00036852,2]
[342852438,1732183832687,-400.0,0.00037,2]
[342852439,1732183832697,-166.66,0.00037734,2]
[342852440,1732183832706,-5551.6562905,0.000379,120]
[342852450,1732183833261,-519.70100852,0.000379,120]
[342852457,1732183838349,-722.93971966,0.0003692,2]
[342852458,1732183838365,-287.85028034,0.0003692,2]
[342852459,1732183838374,-1000.0,0.00037,6]
[342852460,1732183838383,-85.77971966,0.00037,6]
[342852461,1732183838399,-914.22028034,0.00037,6]
[342852462,1732183838410,-1053.39528196,0.000379,120]
[342852463,1732183838545,-894.8360995,0.000379,120]
[342852464,1732183838600,-6542.77580529,0.000379,120]
[342852465,1732183838609,-1810.31905925,0.00038,120]
[342852466,1732183838618,-449.60976785,0.00038,120]
[342852467,1732183838628,-1001.0,0.00038,7]
[342852468,1732183838637,-1292.77,0.00038577,2]
[342852469,1732183838646,-164.67,0.00038901,2]
[342852470,1732183838655,-166.66,0.00038939,2]
[342852471,1732183838666,-450.0,0.00039,2]
[342852472,1732183838675,-1005.0,0.00039,3]
[342852473,1732183838683,-1000.0,0.00039,4]
[342852474,1732183838692,-1000.0,0.00039,4]
[342852475,1732183838702,-1000.0,0.00039,5]
[342852476,1732183838711,-1000.0,0.00039,5]
[342852477,1732183838720,-1000.0,0.00039,5]
[342852478,1732183838730,-1000.0,0.00039,5]
[342852479,1732183838739,-1000.0,0.00039,5]
[342852480,1732183838748,-1000.0,0.00039,9]
[342852481,1732183838757,-764.41,0.00039041,2]
[342852482,1732183838767,-764.41,0.00039041,2]
[342852483,1732183838776,-764.41,0.00039041,2]
[342852484,1732183838785,-764.41,0.00039041,2]
[342852485,1732183838794,-764.41,0.00039041,2]
[342852486,1732183838804,-579.54,0.00039041,2]
[342852492,1732183839105,-233.48,0.00039048,120]
[342852493,1732183839134,-659.0352,0.00039401,2]
[342852494,1732183839143,-3000.0,0.000395,34]
[342852495,1732183839152,-1500.0,0.000396,14]
[342852496,1732183839163,-158.95,0.00039671,2]
[342852497,1732183839172,-156.85,0.00039671,2]
[342852498,1732183839181,-3100.0,0.000397,14]
[342852499,1732183839191,-13403.87048944,0.000397,15]
[342852500,1732183839200,-2500.0,0.00039708,2]
[342852501,1732183839209,-857.99888457,0.00039748,31]
[342852502,1732183839218,-500.0,0.00039799,31]
[342852503,1732183839227,-500.0,0.00039799,31]
[342852504,1732183839236,-500.0,0.00039799,31]
[342852505,1732183839245,-427.29879586,0.00039799,31]
[342852506,1732183839254,-157.45095005,0.00039799,31]
[342852507,1732183839263,-37917.8112,0.000398,2]
[342852508,1732183839272,-91262.633,0.000398,2]
[342852509,1732183839281,-4700.0,0.000398,14]
[342852510,1732183839291,-630.50390956,0.000398,12]
[342852511,1732183839299,-319.55366678,0.000398,2]
[342852512,1732183839308,-153.0,0.00039808,2]
[342852513,1732183839318,-153.0,0.00039808,2]
[342852514,1732183839328,-153.0,0.00039808,2]
[342852515,1732183839337,-153.0,0.00039808,2]
[342852516,1732183839346,-153.0,0.00039808,2]
[342852517,1732183839355,-153.0,0.00039808,2]
[342852518,1732183839364,-153.0,0.00039808,2]
[342852519,1732183839373,-153.0,0.00039808,2]
[342852520,1732183839382,-153.0,0.00039808,2]
[342852521,1732183839391,-153.0,0.00039808,2]
[342852522,1732183839400,-153.0,0.00039808,2]
[342852523,1732183839410,-153.0,0.00039808,2]
[342852524,1732183839419,-153.0,0.00039808,2]
[342852525,1732183839429,-153.0,0.00039808,2]
[342852526,1732183839437,-153.0,0.00039808,2]
[342852527,1732183839446,-153.0,0.00039808,2]
[342852528,1732183839455,-153.0,0.00039808,2]
[342852529,1732183839464,-153.0,0.00039808,2]
[342852530,1732183839473,-153.0,0.00039808,2]
[342852531,1732183839482,-153.0,0.00039808,2]
[342852532,1732183839491,-153.0,0.00039808,2]
[342852533,1732183839499,-153.0,0.00039808,2]
[342852534,1732183839508,-1000.0,0.00039808,2]
[342852535,1732183839517,-1000.0,0.00039808,2]
[342852536,1732183839526,-1000.0,0.00039808,2]
[342852537,1732183839536,-1000.0,0.00039808,2]
[342852538,1732183839545,-1000.0,0.00039808,2]
[342852539,1732183839554,-1000.0,0.00039808,2]
[342852540,1732183839563,-1000.0,0.00039808,2]
[342852541,1732183839571,-1000.0,0.00039808,2]
[342852542,1732183839580,-1000.0,0.00039808,2]
[342852543,1732183839589,-1000.0,0.00039808,2]
[342852544,1732183839598,-1000.0,0.00039808,2]
[342852545,1732183839607,-1000.0,0.00039808,2]
[342852546,1732183839616,-1000.0,0.00039808,2]
[342852547,1732183839625,-1000.0,0.00039808,2]
[342852548,1732183839634,-1000.0,0.00039808,2]
[342852549,1732183839643,-1000.0,0.00039808,2]
[342852550,1732183839651,-1000.0,0.00039808,2]
[342852551,1732183839660,-1000.0,0.00039808,2]
[342852552,1732183839669,-1000.0,0.00039808,2]
[342852553,1732183839678,-1000.0,0.00039808,2]
[342852554,1732183839687,-1000.0,0.00039808,2]
[342852555,1732183839696,-1000.0,0.00039808,2]
[342852556,1732183839705,-1000.0,0.00039808,2]
[342852557,1732183839714,-1000.0,0.00039808,2]
[342852558,1732183839723,-1000.0,0.00039808,2]
[342852559,1732183839732,-1000.0,0.00039808,2]
[342852560,1732183839742,-1000.0,0.00039808,2]
[342852561,1732183839751,-1000.0,0.00039808,2]
[342852562,1732183839761,-1000.0,0.00039808,2]
[342852563,1732183839770,-1000.0,0.00039808,2]
[342852564,1732183839779,-1000.0,0.00039808,2]
[342852565,1732183839788,-1000.0,0.00039808,2]
[342852566,1732183839797,-1000.0,0.00039808,2]
[342852567,1732183839806,-1000.0,0.00039808,2]
[342852568,1732183839815,-1000.0,0.00039808,2]
[342852569,1732183839825,-1000.0,0.00039808,2]
[342852570,1732183839834,-1000.0,0.00039808,2]
[342852571,1732183839843,-1000.0,0.00039808,2]
[342852572,1732183839852,-1000.0,0.00039808,2]
[342852573,1732183839861,-1000.0,0.00039808,2]
[342852574,1732183839870,-1000.0,0.00039808,2]
[342852575,1732183839879,-1000.0,0.00039808,2]
[342852576,1732183839889,-1000.0,0.00039808,2]
[342852577,1732183839898,-1000.0,0.00039808,2]
[342852578,1732183839908,-1084.0,0.00039808,2]
[342852579,1732183839918,-505.7186148,0.00039873,5]
[342852580,1732183839928,-500.0,0.00039873,2]
[342852581,1732183839938,-191.5,0.0003989,30]
[342852582,1732183839947,-300.0,0.00039899,120]
[342852583,1732183839957,-300.0,0.00039899,120]
[342852584,1732183839966,-1000.0,0.00039899,2]
[342852585,1732183839975,-300.0,0.00039899,120]
[342852586,1732183839985,-300.0,0.00039899,120]
[342852587,1732183839994,-300.0,0.00039899,120]
[342852588,1732183840003,-3000.0,0.00039899,120]
[342852589,1732183840012,-1452956.43465481,0.00039899,3]
[342852590,1732183840021,-53871.6401491,0.00039899,2]
[342852591,1732183840031,-1392389.05255639,0.000399,21]
[342852592,1732183840040,-2000.0,0.000399,2]
[342852593,1732183840049,-200.0,0.000399,2]
[342852594,1732183840058,-2000.0,0.000399,2]
[342852595,1732183840067,-200.0,0.000399,2]
[342852596,1732183840077,-200.0,0.000399,2]
[342852597,1732183840087,-6300.0,0.000399,14]
[342852598,1732183840097,-50000.0,0.0004,10]
[342852599,1732183840107,-50000.0,0.0004,20]
[342852600,1732183840115,-50000.0,0.0004,30]
[342852601,1732183840125,-200.0,0.0004,120]
[342852602,1732183840134,-4913.59858621,0.0004,15]
[342852603,1732183840143,-200.0,0.0004,15]
[342852604,1732183840152,-154.0,0.0004,30]
[342852605,1732183840162,-1810.31905925,0.0004,120]
[342852606,1732183840172,-449.60976785,0.0004,120]
[342852607,1732183840181,-151.0,0.0004,120]
[342852608,1732183840190,-564.8224052,0.0004,2]
[342852609,1732183840199,-32999.999999,0.0004,20]
[342852610,1732183840208,-13403.87048937,0.00040027,15]
[342852611,1732183840217,-158.0,0.00040098,5]
[342852612,1732183840226,-166.66,0.00040145,2]
[342852613,1732183840236,-150.0,0.00040152,2]
[342852614,1732183840245,-200.0,0.0004021,56]
[342852615,1732183840254,-962.3493555,0.00040273,4]
[342852616,1732183840263,-2000.0,0.00040299,2]
[342852617,1732183840271,-200.0,0.00040299,2]
[342852618,1732183840280,-200.0,0.00040299,2]
[342852619,1732183840290,-200.0,0.00040299,2]
[342852620,1732183840299,-433.33,0.00040411,2]
[342852621,1732183840308,-764.41,0.00040411,2]
[342852622,1732183840317,-764.41,0.00040411,2]
[342852623,1732183840326,-433.33,0.00040411,2]
[342852624,1732183840335,-433.33,0.00040411,2]
[342852625,1732183840345,-764.41,0.00040411,2]
[342852626,1732183840354,-433.33,0.00040411,2]
[342852627,1732183840363,-764.41,0.00040411,2]
[342852628,1732183840372,-764.41,0.00040411,2]
[342852629,1732183840381,-433.33,0.00040411,2]
[342852630,1732183840390,-764.41,0.00040411,2]
[342852631,1732183840399,-433.33,0.00040411,2]
[342852632,1732183840408,-433.33,0.00040411,2]
[342852633,1732183840420,-764.41,0.00040411,2]
[342852634,1732183840430,-1000.0,0.00040421,2]
[342852635,1732183840440,-159.66,0.00040548,120]
[342852636,1732183840449,-377.3,0.00040548,2]
[342852637,1732183840458,-150.0,0.00040548,2]
[342852638,1732183840467,-362.63,0.00040548,2]
[342852639,1732183840476,-300.0,0.00040548,2]
[342852640,1732183840485,-150.0,0.00040548,2]
[342852641,1732183840494,-362.63,0.00040548,2]
[342852642,1732183840504,-150.0,0.00040548,2]
[342852643,1732183840513,-362.63,0.00040548,2]
[342852644,1732183840524,-362.63,0.00040548,2]
[342852645,1732183840534,-150.0,0.00040548,2]
[342852646,1732183840544,-150.0,0.00040548,2]
[342852647,1732183840554,-362.63,0.00040548,2]
[342852648,1732183840563,-362.63,0.00040548,2]
[342852649,1732183840573,-150.0,0.00040548,2]
[342852650,1732183840582,-362.63,0.00040548,2]
[342852651,1732183840591,-150.0,0.00040548,2]
[342852652,1732183840600,-200.0,0.00040579,2]
[342852653,1732183840610,-521.42,0.00040603,120]
[342852654,1732183840619,-1000.0,0.00040614,2]
[342852655,1732183840628,-2000.0,0.00040702,2]
[342852656,1732183840637,-200.0,0.00040702,2]
[342852657,1732183840646,-200.0,0.00040702,2]
[342852658,1732183840656,-153.0,0.0004076,2]
[342852659,1732183840670,-153.0,0.0004076,2]
[342852660,1732183840679,-153.0,0.0004076,2]
[342852661,1732183840688,-153.0,0.0004076,2]
[342852663,1732183840696,-153.0,0.0004076,2]
[342852665,1732183840706,-153.0,0.0004076,2]
[342852667,1732183840715,-153.0,0.0004076,2]
[342852669,1732183840725,-153.0,0.0004076,2]
[342852671,1732183840734,-153.0,0.0004076,2]
[342852673,1732183840744,-153.0,0.0004076,2]
[342852674,1732183840753,-153.0,0.0004076,2]
[342852675,1732183840762,-153.0,0.0004076,2]
[342852676,1732183840772,-153.0,0.0004076,2]
[342852677,1732183840781,-153.0,0.0004076,2]
[342852678,1732183840790,-153.0,0.0004076,2]
[342852679,1732183840799,-153.0,0.0004076,2]
[342852680,1732183840809,-153.0,0.0004076,2]
[342852681,1732183840818,-153.0,0.0004076,2]
[342852682,1732183840828,-153.0,0.0004076,2]
[342852683,1732183840837,-153.0,0.0004076,2]
[342852684,1732183840846,-153.0,0.0004076,2]
[342852685,1732183840855,-153.0,0.0004076,2]
[342852686,1732183840864,-153.0,0.0004076,2]
[342852687,1732183840874,-153.0,0.0004076,2]
[342852688,1732183840883,-153.0,0.0004076,2]
[342852689,1732183840892,-153.0,0.0004076,2]
[342852690,1732183840901,-153.0,0.0004076,2]
[342852691,1732183840912,-153.0,0.0004076,2]
[342852692,1732183840921,-153.0,0.0004076,2]
[342852693,1732183840930,-153.0,0.0004076,2]
[342852694,1732183840939,-153.0,0.0004076,2]
[342852695,1732183840948,-153.0,0.0004076,2]
[342852696,1732183840958,-153.0,0.0004076,2]
[342852697,1732183840968,-153.0,0.0004076,2]
[342852698,1732183840977,-153.0,0.0004076,2]
[342852699,1732183840987,-153.0,0.0004076,2]
[342852700,1732183840997,-153.0,0.0004076,2]
[342852701,1732183841006,-153.0,0.0004076,2]
[342852702,1732183841016,-153.0,0.0004076,2]
[342852703,1732183841025,-153.0,0.0004076,2]
[342852704,1732183841034,-153.0,0.0004076,2]
[342852705,1732183841043,-153.0,0.0004076,2]
[342852706,1732183841052,-153.0,0.0004076,2]
[342852707,1732183841062,-153.0,0.0004076,2]